[Event "Early-Titled-Tuesday-Blitz-April-23-2024"]
[Site "Chess.com"]
[Date "2024.04.23"]
[Round "6"]
[White "Shahdad2007"]
[Black "Naruna_Chan"]
[Result "1-0"]
[WhiteElo "2602"]
[BlackElo "2368"]
[TimeControl "180+1"]
[EndTime "9:07:36 PDT"]
[Termination "Shahdad2007 won on time"]

1. Nf3 {[%clk 0:02:56.2]} 1... d5 {[%clk 0:02:58.5]} 2. c4 {[%clk 0:02:56.5]}
2... e6 {[%clk 0:02:55.1]} 3. g3 {[%clk 0:02:56.3]} 3... Nf6 {[%clk 0:02:55]} 4.
Bg2 {[%clk 0:02:56.6]} 4... Be7 {[%clk 0:02:54]} 5. O-O {[%clk 0:02:56.6]} 5...
O-O {[%clk 0:02:54.6]} 6. d4 {[%clk 0:02:56.4]} 6... c5 {[%clk 0:02:52.8]} 7.
cxd5 {[%clk 0:02:56]} 7... exd5 {[%clk 0:02:51.5]} 8. Nc3 {[%clk 0:02:56.2]}
8... Nc6 {[%clk 0:02:45.9]} 9. Bg5 {[%clk 0:02:55.1]} 9... Bg4 {[%clk
0:02:44.1]} 10. Bxf6 {[%clk 0:02:47.2]} 10... Bxf6 {[%clk 0:02:42.8]} 11. dxc5
{[%clk 0:02:47.5]} 11... Bxc3 {[%clk 0:02:42]} 12. bxc3 {[%clk 0:02:47.2]} 12...
Qd7 {[%clk 0:02:17.6]} 13. Rb1 {[%clk 0:02:40.9]} 13... Rad8 {[%clk 0:02:17.2]}
14. Nd4 {[%clk 0:02:35.7]} 14... Rfe8 {[%clk 0:02:12.2]} 15. Re1 {[%clk
0:02:33.8]} 15... Ne5 {[%clk 0:02:00.7]} 16. Qb3 {[%clk 0:02:30.4]} 16... Rb8
{[%clk 0:01:52.6]} 17. Qxd5 {[%clk 0:02:28.5]} 17... Qxd5 {[%clk 0:01:29.9]} 18.
Bxd5 {[%clk 0:02:29.4]} 18... Rec8 {[%clk 0:01:28.7]} 19. Bxb7 {[%clk 0:02:07]}
19... Rxc5 {[%clk 0:01:26.2]} 20. f4 {[%clk 0:01:38.8]} 20... Nc4 {[%clk
0:00:56.5]} 21. Bf3 {[%clk 0:01:32.4]} 21... Rxb1 {[%clk 0:00:44.9]} 22. Rxb1
{[%clk 0:01:33.3]} 22... Nd2 {[%clk 0:00:32.5]} 23. Rb8+ {[%clk 0:01:30.2]}
23... Rc8 {[%clk 0:00:32.6]} 24. Rxc8+ {[%clk 0:01:22.2]} 24... Bxc8 {[%clk
0:00:33.5]} 25. Nc6 {[%clk 0:01:22.5]} 25... Be6 {[%clk 0:00:30]} 26. a4 {[%clk
0:01:12.8]} 26... Bb3 {[%clk 0:00:14.4]} 27. a5 {[%clk 0:01:10.3]} 27... Nc4
{[%clk 0:00:11]} 28. a6 {[%clk 0:01:05]} 28... Nd6 {[%clk 0:00:07.7]} 29. Nxa7
{[%clk 0:01:04.9]} 29... Bc4 {[%clk 0:00:08.2]} 30. Bb7 {[%clk 0:01:00.5]} 30...
Kf8 {[%clk 0:00:07.9]} 31. Nc8 {[%clk 0:00:57]} 1-0

[Event "Early-Titled-Tuesday-Blitz-April-23-2024"]
[Site "Chess.com"]
[Date "2024.04.23"]
[Round "6"]
[White "Raskolnikov6"]
[Black "jaskol95"]
[Result "0-1"]
[WhiteElo "2388"]
[BlackElo "2552"]
[TimeControl "180+1"]
[EndTime "9:07:39 PDT"]
[Termination "jaskol95 won on time"]

1. d4 {[%clk 0:02:59.6]} 1... d5 {[%clk 0:02:57.4]} 2. c4 {[%clk 0:02:59]} 2...
c6 {[%clk 0:02:57.6]} 3. Nc3 {[%clk 0:02:58.6]} 3... Nf6 {[%clk 0:02:58.1]} 4.
e3 {[%clk 0:02:59.3]} 4... a6 {[%clk 0:02:57.4]} 5. Nf3 {[%clk 0:02:59]} 5...
Bg4 {[%clk 0:02:57.5]} 6. h3 {[%clk 0:02:52.9]} 6... Bxf3 {[%clk 0:02:57.8]} 7.
Qxf3 {[%clk 0:02:52.3]} 7... e6 {[%clk 0:02:58.6]} 8. cxd5 {[%clk 0:02:50.2]}
8... exd5 {[%clk 0:02:58.5]} 9. Bd3 {[%clk 0:02:49.6]} 9... Nbd7 {[%clk
0:02:58.5]} 10. O-O {[%clk 0:02:49]} 10... Bd6 {[%clk 0:02:57.8]} 11. Re1 {[%clk
0:02:43.3]} 11... O-O {[%clk 0:02:57.4]} 12. Rb1 {[%clk 0:02:39.2]} 12... Re8
{[%clk 0:02:56.5]} 13. a3 {[%clk 0:02:35]} 13... Qe7 {[%clk 0:02:56.7]} 14. Bd2
{[%clk 0:02:12.7]} 14... Ne4 {[%clk 0:02:56.8]} 15. Bxe4 {[%clk 0:01:51.2]}
15... dxe4 {[%clk 0:02:55.4]} 16. Qe2 {[%clk 0:01:48.6]} 16... f5 {[%clk
0:02:56]} 17. g3 {[%clk 0:01:47.1]} 17... Nf6 {[%clk 0:02:54.5]} 18. Qc4+ {[%clk
0:01:46.8]} 18... Qf7 {[%clk 0:02:53.2]} 19. Qxf7+ {[%clk 0:01:46.3]} 19... Kxf7
{[%clk 0:02:54.1]} 20. Ne2 {[%clk 0:01:46.3]} 20... Nd5 {[%clk 0:02:52.6]} 21.
Rbc1 {[%clk 0:01:40]} 21... g5 {[%clk 0:02:52.4]} 22. Nc3 {[%clk 0:01:32.5]}
22... Rac8 {[%clk 0:02:50.1]} 23. Nxd5 {[%clk 0:01:29.5]} 23... cxd5 {[%clk
0:02:49.3]} 24. Bb4 {[%clk 0:01:28.5]} 24... Bxb4 {[%clk 0:02:48.6]} 25. axb4
{[%clk 0:01:28.4]} 25... Ke6 {[%clk 0:02:48.8]} 26. Kf1 {[%clk 0:01:16.1]} 26...
Rc4 {[%clk 0:02:48.6]} 27. Rxc4 {[%clk 0:01:08.1]} 27... dxc4 {[%clk 0:02:49.5]}
28. Ra1 {[%clk 0:01:07.8]} 28... Ra8 {[%clk 0:02:06.9]} 29. b5 {[%clk
0:01:00.7]} 29... a5 {[%clk 0:02:05.7]} 30. b6 {[%clk 0:00:57.7]} 30... Kd5
{[%clk 0:01:59.7]} 31. h4 {[%clk 0:00:34.9]} 31... gxh4 {[%clk 0:01:58.7]} 32.
gxh4 {[%clk 0:00:35.3]} 32... a4 {[%clk 0:01:59.4]} 33. Ke2 {[%clk 0:00:34.5]}
33... Ra6 {[%clk 0:01:56.4]} 34. Kd2 {[%clk 0:00:25.7]} 34... Rxb6 {[%clk
0:01:54.3]} 35. Kc2 {[%clk 0:00:26.4]} 35... Rb4 {[%clk 0:01:52.9]} 36. Rg1
{[%clk 0:00:23.8]} 36... Rb3 {[%clk 0:01:49]} 37. Rg7 {[%clk 0:00:20.4]} 37...
b5 {[%clk 0:01:47.1]} 38. Rxh7 {[%clk 0:00:20]} 38... a3 {[%clk 0:01:43]} 39.
bxa3 {[%clk 0:00:18.4]} 39... Rxa3 {[%clk 0:01:43.1]} 40. Rd7+ {[%clk
0:00:18.8]} 40... Ke6 {[%clk 0:01:43.5]} 41. Rb7 {[%clk 0:00:17.6]} 41... Ra2+
{[%clk 0:01:40.9]} 42. Kc3 {[%clk 0:00:18.2]} 42... Rxf2 {[%clk 0:01:40.8]} 43.
Rxb5 {[%clk 0:00:18.2]} 43... Re2 {[%clk 0:01:41.4]} 44. Kxc4 {[%clk 0:00:18.3]}
44... Rxe3 {[%clk 0:01:41.7]} 45. Rb6+ {[%clk 0:00:18.9]} 45... Kf7 {[%clk
0:01:41.6]} 46. Kd5 {[%clk 0:00:18.3]} 46... f4 {[%clk 0:01:41.5]} 47. Ke5
{[%clk 0:00:16.4]} 47... f3 {[%clk 0:01:42.1]} 48. Rf6+ {[%clk 0:00:15.9]} 48...
Kg7 {[%clk 0:01:41.6]} 49. d5 {[%clk 0:00:14.2]} 49... Re2 {[%clk 0:01:41.5]}
50. Rf4 {[%clk 0:00:14.1]} 50... f2 {[%clk 0:01:40.3]} 51. d6 {[%clk 0:00:14.4]}
51... e3 {[%clk 0:01:40.9]} 52. d7 {[%clk 0:00:14.6]} 52... Rd2 {[%clk
0:01:41.5]} 53. Ke4 {[%clk 0:00:14.3]} 53... e2 {[%clk 0:01:40.6]} 54. Ke3
{[%clk 0:00:02.6]} 54... e1=Q+ {[%clk 0:01:40.6]} 0-1

[Event "Early-Titled-Tuesday-Blitz-April-23-2024"]
[Site "Chess.com"]
[Date "2024.04.23"]
[Round "6"]
[White "GlennTipton"]
[Black "ProtectiveCarrot"]
[Result "0-1"]
[WhiteElo "2492"]
[BlackElo "2354"]
[TimeControl "180+1"]
[EndTime "9:07:44 PDT"]
[Termination "ProtectiveCarrot won by resignation"]

1. d4 {[%clk 0:03:00]} 1... a6 {[%clk 0:02:57.8]} 2. e4 {[%clk 0:02:59.3]} 2...
e6 {[%clk 0:02:57.3]} 3. f4 {[%clk 0:02:43.6]} 3... d5 {[%clk 0:02:55.7]} 4. e5
{[%clk 0:02:41.4]} 4... c5 {[%clk 0:02:55.3]} 5. Nf3 {[%clk 0:02:23.1]} 5... Bd7
{[%clk 0:02:53.2]} 6. Be3 {[%clk 0:02:17.6]} 6... Qb6 {[%clk 0:02:52.1]} 7. Qc1
{[%clk 0:02:12]} 7... Nh6 {[%clk 0:02:50.6]} 8. c3 {[%clk 0:02:01.5]} 8... Nf5
{[%clk 0:02:47.2]} 9. Bf2 {[%clk 0:02:00.1]} 9... h5 {[%clk 0:02:47.4]} 10. Bd3
{[%clk 0:01:57.2]} 10... Bb5 {[%clk 0:02:46.5]} 11. Bxb5+ {[%clk 0:01:47.3]}
11... axb5 {[%clk 0:02:46.5]} 12. dxc5 {[%clk 0:01:41.9]} 12... Bxc5 {[%clk
0:02:45.7]} 13. O-O {[%clk 0:01:35.5]} 13... h4 {[%clk 0:02:33.3]} 14. Nbd2
{[%clk 0:01:15.3]} 14... Ne3 {[%clk 0:02:11.9]} 15. Re1 {[%clk 0:01:14.1]} 15...
Ng4 {[%clk 0:02:01.2]} 16. Bxc5 {[%clk 0:01:08.5]} 16... Qxc5+ {[%clk 0:02:01]}
17. Nd4 {[%clk 0:01:09.4]} 17... h3 {[%clk 0:01:59]} 18. Nb3 {[%clk 0:01:06.8]}
18... Qb6 {[%clk 0:01:57.2]} 19. g3 {[%clk 0:01:06.8]} 19... Nc6 {[%clk
0:01:56.8]} 20. Qd2 {[%clk 0:01:05.1]} 20... Ra4 {[%clk 0:01:52.1]} 21. a3
{[%clk 0:01:00.3]} 21... Kd7 {[%clk 0:01:40.6]} 22. Rad1 {[%clk 0:00:58.3]}
22... Nh6 {[%clk 0:01:31.9]} 23. Qf2 {[%clk 0:00:53.8]} 23... Kc7 {[%clk
0:01:24.3]} 24. Nc2 {[%clk 0:00:35.6]} 24... Ng4 {[%clk 0:01:07]} 25. Qxb6+
{[%clk 0:00:15.7]} 25... Kxb6 {[%clk 0:01:07.9]} 26. Ncd4 {[%clk 0:00:15.9]}
26... g5 {[%clk 0:01:06.6]} 27. Nxc6 {[%clk 0:00:15]} 27... bxc6 {[%clk
0:01:06.4]} 28. fxg5 {[%clk 0:00:15.6]} 28... Rg8 {[%clk 0:01:01.5]} 29. Nd4
{[%clk 0:00:15.3]} 29... Rxg5 {[%clk 0:00:58.3]} 30. Nf3 {[%clk 0:00:16.2]}
30... Rf5 {[%clk 0:00:56.6]} 31. Rd3 {[%clk 0:00:16.8]} 31... Re4 {[%clk
0:00:52.5]} 32. Kf1 {[%clk 0:00:14.9]} 32... Rxf3+ {[%clk 0:00:46.4]} 33. Rxf3
{[%clk 0:00:14.9]} 33... Nxh2+ {[%clk 0:00:46.7]} 34. Kf2 {[%clk 0:00:15.8]}
34... Nxf3 {[%clk 0:00:46.2]} 0-1

[Event "Early-Titled-Tuesday-Blitz-April-23-2024"]
[Site "Chess.com"]
[Date "2024.04.23"]
[Round "6"]
[White "yaguigor"]
[Black "JSPrepz"]
[Result "0-1"]
[WhiteElo "2601"]
[BlackElo "2812"]
[TimeControl "180+1"]
[EndTime "9:07:53 PDT"]
[Termination "JSPrepz won by resignation"]

1. e4 {[%clk 0:03:00.9]} 1... e5 {[%clk 0:03:00.3]} 2. Nf3 {[%clk 0:03:00.1]}
2... Nc6 {[%clk 0:03:00.9]} 3. Bb5 {[%clk 0:03:00.1]} 3... f5 {[%clk 0:03:01.2]}
4. Nc3 {[%clk 0:02:59]} 4... fxe4 {[%clk 0:03:01.5]} 5. Nxe4 {[%clk 0:02:59.4]}
5... d5 {[%clk 0:03:02.1]} 6. Nxe5 {[%clk 0:02:59]} 6... dxe4 {[%clk 0:03:02.6]}
7. Nxc6 {[%clk 0:02:59.3]} 7... Qd5 {[%clk 0:03:03.3]} 8. c4 {[%clk 0:02:56.2]}
8... Qd6 {[%clk 0:03:03]} 9. Qh5+ {[%clk 0:02:55.4]} 9... g6 {[%clk 0:03:02.9]}
10. Qe5+ {[%clk 0:02:56.1]} 10... Qxe5 {[%clk 0:03:03.1]} 11. Nxe5+ {[%clk
0:02:55.9]} 11... c6 {[%clk 0:03:04]} 12. Ba4 {[%clk 0:02:55.6]} 12... Bg7
{[%clk 0:03:04]} 13. d4 {[%clk 0:02:56.1]} 13... exd3 {[%clk 0:03:04.8]} 14. Bf4
{[%clk 0:02:56.2]} 14... Bf5 {[%clk 0:02:58]} 15. O-O-O {[%clk 0:02:54.9]} 15...
Nf6 {[%clk 0:02:54.1]} 16. Nxd3 {[%clk 0:02:46.7]} 16... O-O-O {[%clk
0:02:51.9]} 17. Bc2 {[%clk 0:02:32]} 17... Rd4 {[%clk 0:02:26.9]} 18. Be3 {[%clk
0:02:24.7]} 18... Rxc4 {[%clk 0:02:26.1]} 19. b3 {[%clk 0:02:14.9]} 19... Rxc2+
{[%clk 0:01:38.6]} 20. Kxc2 {[%clk 0:02:13.6]} 20... Rd8 {[%clk 0:01:39.5]} 21.
Bg5 {[%clk 0:01:56.6]} 21... Rd5 {[%clk 0:01:23.5]} 22. Bxf6 {[%clk 0:01:56]}
22... Bxf6 {[%clk 0:01:23.3]} 23. Rhe1 {[%clk 0:01:51.3]} 23... a5 {[%clk
0:01:16]} 24. a4 {[%clk 0:01:47]} 24... b5 {[%clk 0:01:14.8]} 25. axb5 {[%clk
0:01:45.1]} 25... cxb5 {[%clk 0:01:15.7]} 26. Re3 {[%clk 0:01:43.6]} 26... a4
{[%clk 0:01:14.3]} 27. bxa4 {[%clk 0:01:42.7]} 27... bxa4 {[%clk 0:01:15.2]} 28.
f3 {[%clk 0:01:28.2]} 28... h5 {[%clk 0:01:08.1]} 29. Re4 {[%clk 0:01:23.4]}
29... Bxe4 {[%clk 0:01:04.4]} 30. fxe4 {[%clk 0:01:23.1]} 30... Ra5 {[%clk
0:01:03.1]} 31. e5 {[%clk 0:01:22.7]} 31... Bxe5 {[%clk 0:01:02.5]} 32. Nxe5
{[%clk 0:01:22]} 32... Rxe5 {[%clk 0:01:03.1]} 33. Rd2 {[%clk 0:01:07.9]} 33...
Re3 {[%clk 0:01:03.1]} 34. Kd1 {[%clk 0:01:06.5]} 34... Kc7 {[%clk 0:00:59.8]}
35. Rd4 {[%clk 0:01:02.7]} 35... Ra3 {[%clk 0:00:52.6]} 36. h4 {[%clk
0:00:59.4]} 36... Ra2 {[%clk 0:00:50.9]} 37. g4 {[%clk 0:00:58.5]} 37... a3
{[%clk 0:00:46.3]} 38. gxh5 {[%clk 0:00:57.2]} 38... gxh5 {[%clk 0:00:47.2]} 39.
Ra4 {[%clk 0:00:54.6]} 39... Kb6 {[%clk 0:00:46.1]} 40. Kc1 {[%clk 0:00:54.6]}
40... Kb5 {[%clk 0:00:46.6]} 41. Ra8 {[%clk 0:00:54.4]} 41... Kc4 {[%clk
0:00:45.1]} 42. Rc8+ {[%clk 0:00:50.1]} 42... Kd3 {[%clk 0:00:44.1]} 43. Rd8+
{[%clk 0:00:50.2]} 43... Ke3 {[%clk 0:00:44.3]} 44. Rh8 {[%clk 0:00:48]} 44...
Rh2 {[%clk 0:00:36]} 45. Rxh5 {[%clk 0:00:43.8]} 45... Rh1+ {[%clk 0:00:36.3]}
46. Kc2 {[%clk 0:00:40.5]} 46... a2 {[%clk 0:00:37.2]} 0-1

[Event "Early-Titled-Tuesday-Blitz-April-23-2024"]
[Site "Chess.com"]
[Date "2024.04.23"]
[Round "6"]
[White "littlepinkyboy"]
[Black "kuli4ik"]
[Result "0-1"]
[WhiteElo "2669"]
[BlackElo "2883"]
[TimeControl "180+1"]
[EndTime "9:07:54 PDT"]
[Termination "kuli4ik won by resignation"]

1. e4 {[%clk 0:03:00.9]} 1... g6 {[%clk 0:02:54.6]} 2. d4 {[%clk 0:03:00.7]}
2... Bg7 {[%clk 0:02:55]} 3. Nf3 {[%clk 0:03:01.2]} 3... d6 {[%clk 0:02:55.1]}
4. Be2 {[%clk 0:03:01]} 4... Nf6 {[%clk 0:02:54.5]} 5. Nc3 {[%clk 0:03:00.8]}
5... O-O {[%clk 0:02:54.4]} 6. O-O {[%clk 0:03:01.1]} 6... a6 {[%clk 0:02:55.1]}
7. a4 {[%clk 0:03:00.5]} 7... Nc6 {[%clk 0:02:54]} 8. h3 {[%clk 0:02:57.9]} 8...
e5 {[%clk 0:02:53]} 9. Be3 {[%clk 0:02:49.7]} 9... exd4 {[%clk 0:02:48.6]} 10.
Nxd4 {[%clk 0:02:50.6]} 10... Re8 {[%clk 0:02:47.7]} 11. Nxc6 {[%clk 0:02:34.9]}
11... bxc6 {[%clk 0:02:46.6]} 12. Bd3 {[%clk 0:02:32.6]} 12... Rb8 {[%clk
0:02:38.5]} 13. Rb1 {[%clk 0:02:32.3]} 13... Nd7 {[%clk 0:02:33.9]} 14. Qd2
{[%clk 0:02:29.3]} 14... Ne5 {[%clk 0:02:28.2]} 15. f4 {[%clk 0:01:49.6]} 15...
Nxd3 {[%clk 0:02:24.8]} 16. cxd3 {[%clk 0:01:50.5]} 16... f5 {[%clk 0:02:21.7]}
17. Qc2 {[%clk 0:01:28.8]} 17... Be6 {[%clk 0:02:14]} 18. b4 {[%clk 0:01:16.1]}
18... Qd7 {[%clk 0:01:56.9]} 19. Nd1 {[%clk 0:01:03.6]} 19... fxe4 {[%clk
0:01:51.2]} 20. dxe4 {[%clk 0:01:04.5]} 20... d5 {[%clk 0:01:51.7]} 21. Nf2
{[%clk 0:01:00.7]} 21... dxe4 {[%clk 0:01:45.3]} 22. Rfd1 {[%clk 0:00:30.5]}
22... Bd5 {[%clk 0:01:42.2]} 23. Rd2 {[%clk 0:00:10.3]} 23... h5 {[%clk
0:01:38.4]} 24. Nd1 {[%clk 0:00:05.6]} 24... Qe7 {[%clk 0:01:36]} 25. Nc3 {[%clk
0:00:05.9]} 25... Red8 {[%clk 0:01:27.6]} 26. b5 {[%clk 0:00:04.1]} 26... axb5
{[%clk 0:01:23.1]} 27. axb5 {[%clk 0:00:05]} 27... Qa3 {[%clk 0:01:21.4]} 28.
Nxd5 {[%clk 0:00:04.2]} 28... Rxd5 {[%clk 0:01:19.9]} 29. Bf2 {[%clk 0:00:02.9]}
29... e3 {[%clk 0:01:19.5]} 30. Rxd5 {[%clk 0:00:01.8]} 30... exf2+ {[%clk
0:01:18.5]} 31. Qxf2 {[%clk 0:00:02.7]} 31... cxd5 {[%clk 0:01:18.6]} 32. Qc2
{[%clk 0:00:03.3]} 32... Qd6 {[%clk 0:01:14.5]} 33. Qd2 {[%clk 0:00:01.6]} 33...
Rf8 {[%clk 0:01:10.1]} 34. Qd3 {[%clk 0:00:01.5]} 34... Rxf4 {[%clk 0:01:09]}
35. Rd1 {[%clk 0:00:01.7]} 35... Rd4 {[%clk 0:01:06.9]} 36. Qe2 {[%clk
0:00:02.2]} 36... Rxd1+ {[%clk 0:01:06.5]} 37. Qxd1 {[%clk 0:00:03.1]} 37... d4
{[%clk 0:01:07]} 38. Kh1 {[%clk 0:00:04]} 38... d3 {[%clk 0:01:05.7]} 39. Qb3+
{[%clk 0:00:03.9]} 39... Kh7 {[%clk 0:01:05.4]} 40. Qd1 {[%clk 0:00:04.3]} 40...
d2 {[%clk 0:01:05.8]} 41. Kg1 {[%clk 0:00:03.3]} 41... Qf4 {[%clk 0:01:05.3]}
42. Kh1 {[%clk 0:00:04.2]} 42... Be5 {[%clk 0:01:04.2]} 0-1

[Event "Early-Titled-Tuesday-Blitz-April-23-2024"]
[Site "Chess.com"]
[Date "2024.04.23"]
[Round "6"]
[White "M1711"]
[Black "Barath1308"]
[Result "0-1"]
[WhiteElo "2670"]
[BlackElo "2545"]
[TimeControl "180+1"]
[EndTime "9:07:55 PDT"]
[Termination "Barath1308 won by resignation"]

1. e4 {[%clk 0:03:00.9]} 1... c5 {[%clk 0:02:58.2]} 2. Nf3 {[%clk 0:03:01]} 2...
d6 {[%clk 0:02:58.4]} 3. Bb5+ {[%clk 0:03:00.7]} 3... Bd7 {[%clk 0:02:57]} 4. a4
{[%clk 0:02:58.6]} 4... Nf6 {[%clk 0:02:56.2]} 5. Nc3 {[%clk 0:02:58.1]} 5... e6
{[%clk 0:02:56.5]} 6. O-O {[%clk 0:02:57.7]} 6... Be7 {[%clk 0:02:57]} 7. e5
{[%clk 0:02:56.3]} 7... dxe5 {[%clk 0:02:56.7]} 8. Nxe5 {[%clk 0:02:57.2]} 8...
O-O {[%clk 0:02:55.3]} 9. d4 {[%clk 0:02:54]} 9... cxd4 {[%clk 0:02:53.9]} 10.
Qxd4 {[%clk 0:02:47.6]} 10... a6 {[%clk 0:02:49.5]} 11. Nxd7 {[%clk 0:02:45.5]}
11... axb5 {[%clk 0:02:42.4]} 12. Nxf6+ {[%clk 0:02:45.4]} 12... Bxf6 {[%clk
0:02:42.7]} 13. Qxd8 {[%clk 0:02:45.7]} 13... Rxd8 {[%clk 0:02:41.9]} 14. Nxb5
{[%clk 0:02:46.3]} 14... Nc6 {[%clk 0:02:38.4]} 15. c3 {[%clk 0:02:39.1]} 15...
Na5 {[%clk 0:02:35.7]} 16. Bf4 {[%clk 0:02:25.1]} 16... Nb3 {[%clk 0:02:31.9]}
17. Ra3 {[%clk 0:02:25]} 17... Nc5 {[%clk 0:02:31.9]} 18. a5 {[%clk 0:02:19.2]}
18... Nd3 {[%clk 0:02:29.3]} 19. Bc1 {[%clk 0:02:10.6]} 19... Rdc8 {[%clk
0:02:17.4]} 20. Rd1 {[%clk 0:01:41.9]} 20... Nxc1 {[%clk 0:02:12.7]} 21. Rxc1
{[%clk 0:01:42.8]} 21... Rc5 {[%clk 0:02:12.9]} 22. Nd6 {[%clk 0:01:40.4]} 22...
Rcxa5 {[%clk 0:02:06.4]} 23. Rb3 {[%clk 0:01:22.1]} 23... Ra1 {[%clk 0:02:04.3]}
24. Rf1 {[%clk 0:01:22]} 24... Be5 {[%clk 0:01:56.9]} 25. Nxb7 {[%clk
0:01:19.9]} 25... Bxh2+ {[%clk 0:01:56.9]} 26. Kxh2 {[%clk 0:01:13.9]} 26...
Rxf1 {[%clk 0:01:57.8]} 27. Kg3 {[%clk 0:01:11.8]} 27... Rb8 {[%clk 0:01:55.3]}
28. Rb5 {[%clk 0:00:58.5]} 28... g6 {[%clk 0:01:45.2]} 29. c4 {[%clk 0:00:56.8]}
29... Rc1 {[%clk 0:01:44.5]} 30. c5 {[%clk 0:00:53.3]} 30... Kf8 {[%clk
0:01:36]} 31. b4 {[%clk 0:00:49.6]} 31... Ke7 {[%clk 0:01:35.4]} 32. Rb6 {[%clk
0:00:45.6]} 32... Kd7 {[%clk 0:01:32.3]} 33. b5 {[%clk 0:00:05.3]} 33... Kc7
{[%clk 0:01:31.3]} 34. Na5 {[%clk 0:00:01.5]} 34... Rxb6 {[%clk 0:01:29.5]} 35.
cxb6+ {[%clk 0:00:02.1]} 35... Kxb6 {[%clk 0:01:29.9]} 36. Nc6 {[%clk
0:00:01.8]} 36... Rxc6 {[%clk 0:01:28.2]} 37. bxc6 {[%clk 0:00:02.7]} 37... Kxc6
{[%clk 0:01:29.1]} 38. Kf4 {[%clk 0:00:03.4]} 38... f6 {[%clk 0:01:29.4]} 39. g4
{[%clk 0:00:03.5]} 39... g5+ {[%clk 0:01:28.1]} 40. Ke4 {[%clk 0:00:03.5]} 40...
Kd6 {[%clk 0:01:28.6]} 41. Kd4 {[%clk 0:00:03.9]} 41... f5 {[%clk 0:01:26.1]}
42. f3 {[%clk 0:00:03.6]} 42... e5+ {[%clk 0:01:23.3]} 43. Kc4 {[%clk
0:00:02.1]} 43... e4 {[%clk 0:01:16.3]} 44. gxf5 {[%clk 0:00:02.1]} 44... exf3
{[%clk 0:01:16.2]} 45. Kd3 {[%clk 0:00:03]} 45... Ke5 {[%clk 0:01:15.7]} 46. Ke3
{[%clk 0:00:03.5]} 46... Kxf5 {[%clk 0:01:16.3]} 47. Kxf3 {[%clk 0:00:03.7]}
47... g4+ {[%clk 0:01:16.2]} 48. Kg3 {[%clk 0:00:04.1]} 48... Kg5 {[%clk
0:01:16.7]} 49. Kg2 {[%clk 0:00:04.5]} 49... h5 {[%clk 0:01:17]} 0-1

[Event "Early-Titled-Tuesday-Blitz-April-23-2024"]
[Site "Chess.com"]
[Date "2024.04.23"]
[Round "6"]
[White "laiciffOneslraCsungaM"]
[Black "DonJuanEGenaro"]
[Result "0-1"]
[WhiteElo "2298"]
[BlackElo "2036"]
[TimeControl "180+1"]
[EndTime "9:07:57 PDT"]
[Termination "DonJuanEGenaro won by resignation"]

1. e4 {[%clk 0:03:00.9]} 1... c5 {[%clk 0:02:59.8]} 2. Nf3 {[%clk 0:02:57.8]}
2... Nc6 {[%clk 0:03:00.2]} 3. Bb5 {[%clk 0:02:55]} 3... e6 {[%clk 0:02:59.4]}
4. O-O {[%clk 0:02:53.3]} 4... Nge7 {[%clk 0:02:58.1]} 5. Re1 {[%clk 0:02:53.5]}
5... a6 {[%clk 0:02:57.1]} 6. Bf1 {[%clk 0:02:53]} 6... Ng6 {[%clk 0:02:56.3]}
7. c3 {[%clk 0:02:52.6]} 7... Be7 {[%clk 0:02:56.2]} 8. d4 {[%clk 0:02:52.1]}
8... cxd4 {[%clk 0:02:55.8]} 9. cxd4 {[%clk 0:02:53]} 9... d5 {[%clk 0:02:55.9]}
10. e5 {[%clk 0:02:53.5]} 10... O-O {[%clk 0:02:51.9]} 11. Nc3 {[%clk
0:02:50.3]} 11... f6 {[%clk 0:02:51.6]} 12. Bd3 {[%clk 0:02:47.4]} 12... f5
{[%clk 0:02:50.7]} 13. g3 {[%clk 0:02:44.2]} 13... b5 {[%clk 0:02:45.8]} 14. h4
{[%clk 0:02:42.7]} 14... Nxh4 {[%clk 0:02:28]} 15. gxh4 {[%clk 0:02:36.5]} 15...
Bxh4 {[%clk 0:02:27.7]} 16. Bf4 {[%clk 0:02:19.2]} 16... Be7 {[%clk 0:02:17.4]}
17. Qd2 {[%clk 0:02:09]} 17... h6 {[%clk 0:02:13.4]} 18. Kh1 {[%clk 0:01:57]}
18... g5 {[%clk 0:02:07.4]} 19. Rg1 {[%clk 0:01:57.3]} 19... Kf7 {[%clk
0:02:00.1]} 20. Bh2 {[%clk 0:01:52.9]} 20... Rh8 {[%clk 0:01:49.5]} 21. Ne2
{[%clk 0:01:48.9]} 21... g4 {[%clk 0:01:45.9]} 22. Ne1 {[%clk 0:01:45.2]} 22...
Bg5 {[%clk 0:01:45.5]} 23. Bf4 {[%clk 0:01:41]} 23... Bd7 {[%clk 0:01:42.5]} 24.
Kg2 {[%clk 0:01:41.1]} 24... Bxf4 {[%clk 0:01:33.1]} 25. Qxf4 {[%clk 0:01:39.2]}
25... h5 {[%clk 0:01:33]} 26. Kf1 {[%clk 0:01:33.6]} 26... Qe7 {[%clk
0:01:30.9]} 27. f3 {[%clk 0:01:26.8]} 27... Rag8 {[%clk 0:01:26.5]} 28. Nc2
{[%clk 0:01:20.9]} 28... Qg5 {[%clk 0:01:25.5]} 29. Qxg5 {[%clk 0:01:07.9]}
29... Rxg5 {[%clk 0:01:24.9]} 30. f4 {[%clk 0:01:08.8]} 30... Rg7 {[%clk
0:01:23.2]} 31. a4 {[%clk 0:01:05.3]} 31... Rb8 {[%clk 0:01:09.1]} 32. axb5
{[%clk 0:00:56.1]} 32... axb5 {[%clk 0:01:08.6]} 33. b4 {[%clk 0:00:45]} 33...
h4 {[%clk 0:01:08]} 34. Nc3 {[%clk 0:00:41.4]} 34... g3 {[%clk 0:00:50]} 35. Kg2
{[%clk 0:00:31.8]} 35... h3+ {[%clk 0:00:37]} 36. Kxh3 {[%clk 0:00:31.7]} 36...
g2 {[%clk 0:00:37]} 0-1